bitfinex/quotes_SOLUSD_20241021
["timestamp","ask_amount","ask_price","bid_price","bid_amount"]
[1729535487933,15.6342,165.46,165.4,20.0]
[1729535488813,21.4501,165.5,165.4,20.0]
[1729535489740,6.0427,165.49,165.4,20.0]
[1729535491722,6.043,165.48,165.4,20.0]
[1729535495343,6.043,165.48,165.37,3.52855388]
[1729535495637,6.043,165.48,165.36,23.776884]
[1729535495835,6.043,165.48,165.39,20.0]
[1729535496038,21.4501,165.5,165.39,20.0]
[1729535496039,6.0428,165.49,165.39,20.0]
[1729535496240,21.4501,165.5,165.4,23.776884]
[1729535496435,21.4501,165.5,165.41,20.0]
[1729535498226,6.0426,165.49,165.36,23.776884]
[1729535498540,6.0426,165.49,165.37,20.0]
[1729535498720,6.0426,165.49,165.38,23.776884]
[1729535498922,6.0426,165.49,165.39,20.0]
[1729535501336,6.0436,165.47,165.39,20.0]
[1729535501519,6.0436,165.47,165.37,20.0]
[1729535502117,6.0431,165.48,165.37,20.0]
[1729535502858,21.4501,165.5,165.4,23.776884]
[1729535503153,21.4501,165.5,165.41,20.0]
[1729535504344,21.4501,165.5,165.43,20.0]
[1729535506329,27.4924,165.5,165.36,0.2]
[1729535507657,27.4924,165.5,165.36,0.1]
[1729535507854,27.4924,165.5,165.36,0.2]
[1729535508152,27.4924,165.5,165.36,0.1]
[1729535510834,27.4924,165.5,165.36,0.2]
[1729535513463,27.4924,165.5,165.36,0.1]
[1729535513664,27.4924,165.5,165.36,0.2]
[1729535516054,27.4924,165.5,165.36,0.1]
[1729535516260,27.4924,165.5,165.36,0.2]
[1729535517963,21.4501,165.5,165.37,0.1]
[1729535518148,21.4501,165.5,165.38,43.776884]
[1729535523960,6.0437,165.46,165.34,25.11707386]
[1729535524260,6.0433,165.48,165.34,18.81825175]
[1729535524469,21.4501,165.5,165.34,18.81825175]
[1729535524470,6.0434,165.47,165.34,18.81825175]
[1729535525350,6.0434,165.47,165.35,23.776884]
[1729535525749,6.0434,165.47,165.38,20.0]
[1729535529353,6.0426,165.49,165.39,23.776884]
[1729535529567,21.4501,165.5,165.42,20.0]
[1729535530263,27.4924,165.5,165.42,20.0]
[1729535532372,21.4501,165.5,165.42,20.0]
[1729535532870,27.4923,165.5,165.42,20.0]
[1729535533275,21.4501,165.5,165.42,20.0]
[1729535534747,28.8691,165.54,165.45,23.776884]
[1729535535068,28.8691,165.54,165.46,20.0]
[1729535535770,22.8281,165.54,165.46,20.0]
[1729535535964,28.8689,165.54,165.46,20.0]
[1729535537275,22.8281,165.54,165.46,20.0]
[1729535541261,6.0412,165.53,165.46,20.0]
[1729535541469,6.0417,165.52,165.42,20.0]
[1729535541780,6.0422,165.51,165.42,20.0]
[1729535542587,37.9305,165.54,165.42,20.0]
[1729535542588,6.0416,165.52,165.42,20.0]
[1729535542755,6.0416,165.52,165.44,20.0]
[1729535544277,21.607,165.47,165.36,21.7076]
[1729535544467,6.0437,165.46,165.35,3.5210861]
[1729535544775,6.0437,165.46,165.32,21.7076]
[1729535545483,6.0437,165.46,165.32,28.29943822]
[1729535545656,6.0437,165.46,165.33,23.776884]
[1729535545854,15.5636,165.47,165.33,30.46872222]
[1729535546057,15.5636,165.47,165.35,23.776884]
[1729535546258,15.5636,165.47,165.37,20.0]
[1729535546476,15.5636,165.47,165.37,23.776884]
[1729535546670,15.5636,165.47,165.39,23.776884]
[1729535546871,15.5636,165.47,165.38,20.0]
[1729535547179,15.5636,165.47,165.39,23.776884]
[1729535547387,15.5636,165.47,165.4,20.0]
[1729535551759,21.6072,165.47,165.33,20.0]
[1729535551963,21.6072,165.47,165.35,20.0]
[1729535552163,21.6072,165.47,165.36,23.776884]
[1729535552368,6.044,165.46,165.34,23.776884]
[1729535553689,6.044,165.46,165.35,20.0]
[1729535553876,6.044,165.46,165.37,20.0]
[1729535554083,6.0443,165.45,165.37,20.0]
[1729535554263,6.0445,165.44,165.37,20.0]
[1729535554467,6.0445,165.44,165.33,20.0]
[1729535555085,6.044,165.46,165.33,20.0]
[1729535555297,6.044,165.46,165.35,20.0]
[1729535555880,6.044,165.46,165.37,20.0]
[1729535556292,15.5636,165.47,165.37,20.0]
[1729535556293,21.607,165.47,165.37,20.0]
[1729535556797,15.5636,165.47,165.37,20.0]
[1729535556993,6.0444,165.45,165.37,20.0]
[1729535557599,6.0445,165.44,165.37,20.0]
[1729535557802,15.5636,165.47,165.28,6.69183822]
[1729535557803,39.500384,165.45,165.35,20.0]
[1729535558093,15.7235,165.39,165.28,25.72078858]
[1729535559403,15.7235,165.39,165.31,23.776884]
[1729535559593,15.7235,165.39,165.32,20.0]
[1729535560176,15.7235,165.39,165.29,20.0]
[1729535560383,15.7235,165.39,165.29,43.776884]
[1729535560578,21.866,165.49,165.29,43.776884]
[1729535560802,21.866,165.49,165.31,43.776884]
[1729535561007,21.866,165.49,165.31,50.36872222]
[1729535561678,6.0436,165.47,165.32,6.59183822]
[1729535561879,6.0436,165.47,165.35,43.776884]
[1729535563500,6.0434,165.47,165.35,43.776884]
[1729535563691,6.044,165.46,165.35,43.776884]
[1729535566609,21.866,165.49,165.35,43.776884]
[1729535566781,6.0432,165.48,165.35,43.776884]
[1729535567294,6.0435,165.47,165.35,43.776884]
[1729535568383,6.0431,165.48,165.35,43.776884]
[1729535575113,6.0434,165.47,165.35,43.776884]
[1729535578086,15.6157,165.43,165.35,43.776884]
[1729535578400,21.7252,165.43,165.35,43.776884]
[1729535579308,6.0452,165.42,165.32,23.776884]
[1729535579489,21.7252,165.43,165.3,15.9122]
[1729535579490,21.7252,165.43,165.31,23.776884]
[1729535580700,21.7252,165.43,165.34,20.0]
[1729535580905,21.7252,165.43,165.36,20.0]
[1729535581313,21.7252,165.43,165.32,20.0]
[1729535581514,21.7252,165.43,165.34,20.0]
[1729535582017,6.0458,165.41,165.3,15.9122]
[1729535582211,6.0463,165.39,165.28,6.0604]
[1729535582605,6.0467,165.38,165.28,6.0604]
[1729535582828,6.0467,165.38,165.28,9.58425845]
[1729535583010,16.3915,165.37,165.28,3.52385845]
[1729535583216,16.3915,165.37,165.26,16.1102]
[1729535583418,22.4387,165.37,165.26,16.1102]
[1729535583602,6.4894,165.36,165.26,16.1102]
[1729535584699,6.4894,165.36,165.27,20.0]
[1729535584910,16.3915,165.37,165.29,20.0]
[1729535590720,16.3915,165.37,165.3,23.776884]
[1729535590907,6.464,165.4,165.31,20.0]
[1729535591218,6.464,165.4,165.33,20.0]
[1729535591921,16.6085,165.41,165.33,20.0]
[1729535592400,6.29925533,165.47,165.35,20.0]
[1729535592609,15.4468,165.48,165.39,20.0]
[1729535595822,15.4468,165.48,165.4,23.776884]
[1729535596013,15.4468,165.48,165.41,20.0]
[1729535598711,15.4468,165.48,165.39,23.776884]
[1729535598910,15.4468,165.48,165.4,20.0]
[1729535602021,21.4898,165.48,165.4,20.0]
[1729535604334,15.4468,165.48,165.4,20.0]
[1729535604706,15.4468,165.48,165.41,23.776884]
[1729535604909,15.4468,165.48,165.42,20.0]
[1729535605310,6.0419,165.51,165.42,20.0]
[1729535607310,16.5429,165.52,165.36,20.0]
[1729535607508,16.5429,165.52,165.39,23.776884]
[1729535607716,6.0429,165.49,165.4,20.0]
[1729535609637,16.5429,165.52,165.4,20.0]
[1729535609937,6.0421,165.51,165.42,20.0]
[1729535611032,16.5429,165.52,165.42,20.0]
[1729535611333,22.5845,165.52,165.42,20.0]
[1729535613730,6.0419,165.51,165.42,20.0]
[1729535615335,16.5429,165.52,165.42,20.0]
[1729535615639,16.5429,165.52,165.44,20.0]
[1729535615818,22.5845,165.52,165.44,20.0]
[1729535616212,16.5429,165.52,165.44,20.0]
[1729535617521,22.5844,165.52,165.44,20.0]
[1729535618240,22.5844,165.52,165.42,20.0]
[1729535618241,6.0423,165.5,165.42,20.0]
[1729535618732,6.042,165.51,165.42,20.0]
[1729535619431,6.042,165.51,165.36,22.2789]
[1729535619642,6.042,165.51,165.37,43.776884]
[1729535619843,6.0432,165.48,165.37,20.0]
[1729535620018,6.0432,165.48,165.36,25.86175385]
[1729535620335,6.0444,165.45,165.32,6.2623]
[1729535620543,6.0433,165.48,165.32,29.21033822]
[1729535620728,21.799,165.49,165.34,0.1]
[1729535621040,21.799,165.49,165.34,6.69183822]
[1729535621530,21.799,165.49,165.34,6.79183822]
[1729535621739,21.799,165.49,165.35,20.0]
[1729535622439,15.7563,165.49,165.39,20.0]
[1729535622737,6.0438,165.46,165.38,23.776884]
[1729535622933,15.7563,165.49,165.32,26.02513621]
[1729535623138,23.776884,165.48,165.32,26.02513621]
[1729535624017,6.0444,165.45,165.33,20.0]
[1729535624929,6.0444,165.45,165.35,20.0]
[1729535625323,6.0444,165.45,165.37,20.0]
[1729535625741,6.0444,165.45,165.35,20.0]
[1729535626045,6.0444,165.45,165.37,20.0]
[1729535626418,30.426584,165.46,165.35,20.0]
[1729535626642,30.426584,165.46,165.33,20.0]
[1729535626643,6.0453,165.42,165.33,20.0]
[1729535627230,15.7296,165.45,165.32,16.2562]
[1729535627537,6.0456,165.41,165.28,22.3351]
[1729535627741,15.7296,165.45,165.28,22.3351]
[1729535627942,6.0452,165.42,165.29,23.776884]
[1729535628239,15.7296,165.45,165.29,23.776884]
[1729535628424,6.0449,165.43,165.29,30.36872222]
[1729535628740,6.0449,165.43,165.32,20.0]
[1729535628917,6.0449,165.43,165.34,20.0]
[1729535629530,6.0449,165.43,165.3,20.0]
[1729535629843,6.0449,165.43,165.34,20.0]
[1729535630939,15.7296,165.45,165.34,20.0]
[1729535631147,6.0445,165.44,165.36,20.0]
[1729535632235,15.7296,165.45,165.3,20.0]
[1729535632442,6.0451,165.43,165.31,23.776884]
[1729535632627,6.0451,165.43,165.33,23.776884]
[1729535632837,6.0451,165.43,165.34,20.0]
[1729535633044,15.7296,165.45,165.34,20.0]
[1729535633045,6.0455,165.41,165.34,20.0]
[1729535633340,6.0459,165.41,165.34,20.0]
[1729535633539,23.776884,165.44,165.34,20.0]
[1729535633720,6.0458,165.41,165.29,20.0]
[1729535634535,6.0458,165.41,165.31,20.0]
[1729535634741,6.0458,165.41,165.33,20.0]
[1729535641555,6.0462,165.4,165.3,23.776884]
[1729535641747,6.0462,165.4,165.31,20.0]
[1729535642341,6.0469,165.38,165.29,20.0]
[1729535643737,22.7232,165.42,165.29,20.0]
[1729535644255,6.0459,165.4,165.31,20.0]
[1729535644739,6.0455,165.41,165.31,20.0]
[1729535645552,28.7685,165.42,165.33,20.0]
[1729535645848,22.7232,165.42,165.33,20.0]
[1729535646046,6.0456,165.41,165.33,20.0]
[1729535646748,22.7232,165.42,165.29,20.0]
[1729535646749,6.0462,165.4,165.29,20.0]
[1729535646935,6.0462,165.4,165.3,23.776884]
[1729535647135,6.0462,165.4,165.31,20.0]
[1729535660064,22.7232,165.42,165.31,20.0]
[1729535660261,6.0462,165.4,165.31,20.0]
[1729535661460,6.0466,165.38,165.31,20.0]
[1729535663668,6.0471,165.37,165.31,20.0]
[1729535663964,22.4007,165.36,165.26,23.776884]
[1729535664952,16.3532,165.36,165.26,23.776884]
[1729535665376,16.3532,165.36,165.29,20.0]
[1729535665875,12.42924101,165.42,165.31,20.0]
[1729535665876,16.3051,165.4,165.31,20.0]
[1729535666363,16.3051,165.4,165.33,20.0]
[1729535666865,12.1639,165.42,165.29,16.4258]
[1729535666866,6.1186,165.42,165.35,20.0]
[1729535668869,15.9608,165.44,165.35,20.0]
[1729535669177,22.0056,165.44,165.35,20.0]
[1729535669555,6.045,165.43,165.35,20.0]
[1729535669759,15.9608,165.44,165.37,20.0]
[1729535670381,28.0507,165.47,165.38,23.776884]
[1729535670573,28.0507,165.47,165.39,20.0]
[1729535671984,28.0507,165.47,165.35,15.6953]
[1729535671985,6.0444,165.45,165.36,20.0]
[1729535672155,22.0073,165.47,165.37,23.776884]
[1729535672359,22.0073,165.47,165.38,20.0]
[1729535672360,6.0437,165.46,165.38,20.0]
[1729535673277,28.0507,165.47,165.38,20.0]
[1729535674483,22.0073,165.47,165.38,20.0]
[1729535675561,28.0508,165.47,165.38,20.0]
[1729535676175,6.0441,165.46,165.38,20.0]
[1729535677571,22.0073,165.47,165.39,23.776884]
[1729535677757,22.0073,165.47,165.4,20.0]
[1729535685587,15.3822,165.47,165.41,23.776884]
[1729535685797,27.8125608,165.51,165.44,20.0]
[1729535686097,27.546,165.51,165.44,20.0]
[1729535690074,6.0422,165.5,165.44,20.0]
[1729535690792,6.0426,165.5,165.44,20.0]
[1729535690975,6.0427,165.49,165.41,20.0]
[1729535691380,6.0427,165.49,165.43,20.0]
[1729535698010,21.5041,165.51,165.43,20.0]
[1729535698210,6.043,165.48,165.41,20.0]
[1729535704522,21.5041,165.51,165.41,20.0]
[1729535704523,6.0427,165.49,165.41,20.0]
[1729535704700,21.5041,165.51,165.41,20.0]
[1729535705017,6.0427,165.49,165.41,20.0]
[1729535705523,21.5041,165.51,165.45,20.0]
[1729535705728,15.0807,165.51,165.45,20.0]
[1729535708623,6.4377,165.55,165.47,20.0]
[1729535708624,21.6626,165.55,165.47,20.0]
[1729535708807,21.6626,165.55,165.42,6.5323]
[1729535709137,6.0418,165.52,165.43,43.776884]
[1729535709907,21.6626,165.55,165.42,20.0]
[1729535710131,23.776884,165.54,165.38,20.0]
[1729535710335,6.0422,165.51,165.38,20.0]
[1729535710630,6.0422,165.51,165.38,23.57715882]
[1729535710919,6.0416,165.52,165.38,23.57715882]
[1729535711321,6.0416,165.52,165.39,23.776884]
[1729535711516,6.0416,165.52,165.4,20.0]
[1729535711707,6.0416,165.52,165.41,23.776884]
[1729535712024,6.0416,165.52,165.42,20.0]
[1729535712231,6.0416,165.52,165.43,23.776884]
[1729535712409,6.0416,165.52,165.44,20.0]
[1729535712818,6.0408,165.54,165.46,20.0]
[1729535713325,27.703,165.55,165.47,23.776884]
[1729535713520,21.6626,165.55,165.47,23.776884]
[1729535714109,27.703,165.55,165.47,23.776884]
[1729535714522,27.703,165.55,165.48,20.0]
[1729535715329,21.6626,165.55,165.48,20.0]
[1729535715907,27.7031,165.55,165.48,20.0]
[1729535716108,21.6626,165.55,165.48,20.0]
[1729535716314,15.2249,165.55,165.48,20.0]
[1729535717528,15.2249,165.55,165.5,20.0]
[1729535718439,22.2801,165.59,165.44,23.53495879]
[1729535718730,6.0401,165.56,165.48,20.0]
[1729535718949,6.0401,165.56,165.5,20.0]
[1729535719314,6.0398,165.57,165.5,20.0]
[1729535719726,6.0398,165.57,165.47,23.776884]
[1729535719929,22.2801,165.59,165.48,20.0]
[1729535720234,6.0407,165.55,165.48,20.0]
[1729535720417,22.2801,165.59,165.48,20.0]
[1729535720621,22.2801,165.59,165.43,22.5852]
[1729535720622,21.5178,165.53,165.44,20.0]
[1729535721128,15.4763,165.53,165.44,20.0]
[1729535721335,6.0415,165.52,165.44,20.0]
[1729535721524,21.5175,165.53,165.44,20.0]
[1729535721836,21.5175,165.53,165.46,20.0]
[1729535721837,6.0416,165.52,165.46,20.0]
[1729535722638,6.0416,165.52,165.44,20.0]
[1729535723416,6.0416,165.52,165.46,20.0]
[1729535724236,15.4763,165.53,165.46,20.0]
[1729535724627,15.4763,165.53,165.47,23.776884]
[1729535724945,21.9869,165.57,165.49,23.776884]
[1729535725312,21.9869,165.57,165.5,20.0]
[1729535725620,6.0404,165.56,165.5,20.0]
[1729535726434,15.9471,165.57,165.5,20.0]
[1729535726642,21.9868,165.57,165.5,20.0]
[1729535729230,21.9868,165.57,165.49,23.776884]
[1729535729429,21.9868,165.57,165.5,20.0]
[1729535731038,6.0397,165.57,165.5,20.0]
[1729535735024,22.2356,165.62,165.51,23.776884]
[1729535735231,6.0393,165.59,165.52,20.0]
[1729535743158,6.0382,165.61,165.53,23.776884]
[1729535743370,15.8889,165.62,165.58,20.0]
[1729535743946,6.641841,165.65,165.58,20.0]
[1729535744842,0.604841,165.65,165.58,20.0]
[1729535745042,0.604841,165.65,165.59,23.776884]
[1729535746356,0.604841,165.65,165.61,23.776884]
[1729535753287,0.604841,165.65,165.62,20.0]
[1729535755268,0.604841,165.65,165.64,43.776884]
[1729535765482,0.604841,165.65,165.59,20.0]
[1729535767979,0.604841,165.65,165.6,23.776884]
[1729535768479,0.604841,165.65,165.63,20.0]
[1729535769882,0.604841,165.65,165.52,16.0904]
[1729535770261,6.0371,165.64,165.52,16.0904]
[1729535771373,6.0371,165.64,165.53,20.0]
[1729535771577,22.7445,165.61,165.49,6.5511]
[1729535771790,6.0387,165.6,165.48,15.0343]
[1729535773481,6.039,165.59,165.48,15.0343]
[1729535774090,6.039,165.59,165.49,20.0]
[1729535774289,22.7445,165.61,165.48,15.0343]
[1729535774465,6.0386,165.6,165.48,15.0343]
[1729535774667,6.0386,165.6,165.49,23.776884]
[1729535775674,22.7445,165.61,165.5,20.0]
[1729535775882,6.0397,165.57,165.5,20.0]
[1729535776386,6.0397,165.57,165.49,23.776884]
[1729535777587,18.22,165.58,165.5,20.0]
[1729535777791,6.0408,165.55,165.44,22.58987466]
[1729535777966,6.1987,165.54,165.44,16.2883]
[1729535779395,6.1987,165.54,165.46,23.776884]
[1729535779893,6.1987,165.54,165.48,23.776884]
[1729535782404,24.52880912,165.58,165.55,20.0]
[1729535782694,6.0376,165.63,165.55,20.0]
[1729535784793,22.2598,165.64,165.56,23.776884]
[1729535785996,28.2971,165.64,165.56,23.776884]
[1729535788870,22.2598,165.64,165.55,28.57389505]
[1729535789097,6.038,165.62,165.53,23.776884]
[1729535789277,22.2598,165.64,165.54,20.0]
[1729535789477,6.0382,165.61,165.54,20.0]
[1729535791299,6.0379,165.62,165.54,20.0]
[1729535792897,22.2598,165.64,165.55,23.776884]
[1729535793078,6.0376,165.63,165.56,20.0]
[1729535793573,28.2971,165.64,165.56,20.0]
[1729535794702,22.2598,165.64,165.58,20.0]
[1729535794906,22.2598,165.64,165.59,23.776884]
[1729535798678,22.2598,165.64,165.52,20.0]
[1729535798884,22.2598,165.64,165.55,23.776884]
[1729535799102,22.2598,165.64,165.56,20.0]
[1729535799411,22.2598,165.64,165.58,20.0]
[1729535799602,6.0379,165.62,165.52,8.57389505]
[1729535800916,6.0379,165.62,165.54,20.0]
[1729535801398,6.0379,165.62,165.56,20.0]
[1729535807207,6.0376,165.63,165.56,20.0]
[1729535814314,6.0375,165.63,165.56,20.0]
[1729535814517,6.0375,165.63,165.45,0.2]
[1729535814518,6.0402,165.56,165.45,6.0961]
[1729535814721,6.0404,165.55,165.45,6.0961]
[1729535815013,21.6321,165.56,165.45,9.72564354]
[1729535815990,21.6321,165.56,165.46,23.776884]
[1729535816390,21.6321,165.56,165.47,20.0]
[1729535816699,12.2592,165.55,165.43,15.5955]
[1729535817010,12.2592,165.55,165.43,19.23319541]
[1729535817510,6.2185,165.55,165.43,27.01264602]
[1729535817810,6.2185,165.55,165.44,23.776884]
[1729535818411,6.2185,165.55,165.47,20.0]
[1729535818618,6.2185,165.55,165.48,23.776884]
[1729535818907,6.2185,165.55,165.49,20.0]
[1729535820705,6.0412,165.53,165.46,23.776884]
[1729535820908,6.0412,165.53,165.47,20.0]
[1729535821094,6.0409,165.54,165.47,20.0]
[1729535821297,6.0409,165.54,165.46,23.776884]
[1729535821813,6.2185,165.55,165.46,23.776884]
[1729535822004,15.5918,165.56,165.46,31.55633461]
[1729535822214,15.5918,165.56,165.47,7.77945061]
[1729535822421,15.5918,165.56,165.49,20.0]
[1729535822914,15.5918,165.56,165.51,20.0]
[1729535823496,15.5918,165.56,165.5,23.776884]
[1729535823697,15.5918,165.56,165.51,20.0]
[1729535825616,12.6351,165.59,165.51,20.0]
[1729535825822,6.5961,165.59,165.51,20.0]
[1729535826006,15.5622,165.6,165.55,20.0]
[1729535827201,6.039,165.59,165.53,20.0]
[1729535827400,15.5622,165.6,165.53,20.0]
[1729535827710,28.3537,165.64,165.56,23.776884]
[1729535828030,6.0375,165.63,165.56,23.776884]
[1729535829727,22.3165,165.64,165.5,23.776884]
[1729535829895,6.039,165.59,165.51,20.0]
[1729535830228,6.039,165.59,165.48,10.11358296]
[1729535831220,6.039,165.59,165.49,43.776884]
[1729535833503,28.3537,165.64,165.5,7.77945061]
[1729535833708,28.3537,165.64,165.53,20.0]
[1729535834004,28.3537,165.64,165.55,20.0]
[1729535834204,22.3165,165.64,165.56,23.776884]
[1729535834423,6.0375,165.63,165.56,23.776884]
[1729535835011,22.3165,165.64,165.51,20.0]
[1729535835224,6.0382,165.62,165.51,20.0]
[1729535835424,6.0382,165.62,165.53,20.0]
[1729535835930,6.0382,165.62,165.55,20.0]
[1729535837018,22.3165,165.64,165.5,7.77945061]
[1729535837226,6.0392,165.59,165.51,23.776884]
[1729535838007,22.3165,165.64,165.51,23.776884]
[1729535838233,6.0401,165.56,165.46,16.1525]
[1729535838531,6.0401,165.56,165.47,23.776884]
[1729535839111,16.5203,165.57,165.46,16.1525]
[1729535839339,6.0409,165.54,165.45,7.77945061]
[1729535839630,6.0409,165.54,165.43,9.91084225]
[1729535839930,16.5203,165.57,165.42,15.5044]
[1729535840436,6.0412,165.53,165.42,15.5044]
[1729535840640,16.5203,165.57,165.42,15.5044]
[1729535840641,6.0407,165.55,165.43,20.0]
[1729535840947,6.0407,165.55,165.44,23.776884]
[1729535841249,16.5203,165.57,165.47,20.0]
[1729535841544,6.0407,165.55,165.47,20.0]
[1729535844150,6.0402,165.56,165.49,20.0]
[1729535844324,16.5203,165.57,165.49,20.0]
[1729535844641,22.56,165.57,165.49,20.0]
[1729535849555,22.56,165.57,165.5,23.776884]
[1729535849843,16.5203,165.57,165.51,20.0]
[1729535851551,6.0416,165.52,165.42,15.5044]
[1729535851860,28.4923,165.51,165.38,15.6394]
[1729535852548,28.4923,165.51,165.38,23.41885061]
[1729535852740,22.4502,165.51,165.38,23.41885061]
[1729535853461,28.4921,165.51,165.39,23.776884]
[1729535853743,28.4921,165.51,165.41,23.776884]
[1729535853952,28.4921,165.51,165.42,20.0]
[1729535854256,22.4502,165.51,165.44,20.0]
[1729535856636,22.4502,165.51,165.38,7.77945061]
[1729535856834,6.0429,165.49,165.38,7.77945061]
[1729535858061,6.0429,165.49,165.39,43.776884]
[1729535858445,18.22,165.5,165.39,43.776884]
[1729535858647,18.22,165.5,165.39,51.55633461]
[1729535858859,6.0426,165.49,165.39,43.776884]
[1729535860957,18.22,165.5,165.39,23.776884]
[1729535861174,24.2624,165.5,165.39,23.776884]
[1729535861530,18.22,165.5,165.39,23.776884]
[1729535861832,18.22,165.5,165.41,23.776884]
[1729535862253,18.22,165.5,165.42,20.0]
[1729535866834,18.22,165.5,165.44,20.0]
[1729535867561,18.22,165.5,165.46,20.0]
[1729535867758,18.22,165.5,165.47,23.776884]
[1729535868061,22.5545,165.55,165.48,20.0]
[1729535868743,22.5545,165.55,165.5,20.0]
[1729535868947,6.26409496,165.6,165.52,20.0]
[1729535868948,22.5545,165.59,165.52,20.0]
[1729535869834,22.5545,165.59,165.53,23.776884]
[1729535870037,16.1212,165.63,165.54,20.0]
[1729535872559,16.1212,165.63,165.55,23.776884]
[1729535872752,16.1212,165.63,165.56,20.0]
[1729535872953,16.1212,165.63,165.57,23.776884]
[1729535873163,0.604841,165.65,165.58,20.0]
[1729535873471,0.604841,165.65,165.59,23.776884]
[1729535873860,0.604841,165.65,165.56,20.0]
[1729535874053,0.604841,165.65,165.57,23.776884]
[1729535874247,0.604841,165.65,165.58,20.0]
[1729535874455,0.604841,165.65,165.59,23.776884]
[1729535874771,0.604841,165.65,165.6,20.0]
[1729535876349,0.604841,165.65,165.61,23.776884]
[1729535876562,0.604841,165.65,165.62,20.0]
[1729535877954,0.604841,165.65,165.56,43.776884]
[1729535883970,0.604841,165.65,165.56,51.55633461]
[1729535884171,0.604841,165.65,165.58,43.776884]
[1729535886864,22.135841,165.65,165.51,15.068]
[1729535887169,16.098941,165.65,165.51,15.068]
[1729535887372,6.0374,165.64,165.51,15.068]
[1729535888159,22.135741,165.65,165.51,22.84745061]
[1729535888859,22.135741,165.65,165.53,23.776884]
[1729535889364,22.135741,165.65,165.56,20.0]
[1729535890165,6.0372,165.64,165.56,20.0]
[1729535897088,6.0394,165.58,165.47,15.6745]
[1729535897269,6.0389,165.6,165.47,15.6745]
[1729535898264,6.0389,165.6,165.48,43.776884]
[1729535901666,6.0391,165.59,165.48,20.0]
[1729535902475,6.0391,165.59,165.48,27.77945061]
[1729535902878,15.572,165.62,165.47,19.17951548]
[1729535902879,15.572,165.62,165.5,20.0]
[1729535903077,6.0387,165.6,165.5,20.0]
[1729535903481,6.0383,165.61,165.5,20.0]
[1729535904584,6.0383,165.61,165.52,20.0]
[1729535905293,6.0385,165.61,165.53,20.0]
[1729535905471,21.61,165.62,165.53,20.0]
[1729535906072,15.572,165.62,165.53,20.0]
[1729535906487,0.604841,165.65,165.55,20.0]
[1729535906793,0.604841,165.65,165.57,20.0]
[1729535912001,0.604841,165.65,165.58,23.776884]
[1729535912298,0.604841,165.65,165.59,20.0]
[1729535914479,0.604841,165.65,165.57,20.0]
[1729535914674,6.0373,165.64,165.52,20.0]
[1729535914885,6.0373,165.64,165.51,7.77945061]
[1729535916299,6.0373,165.64,165.52,23.776884]
[1729535916498,6.0373,165.64,165.55,20.0]
[1729535921298,0.604841,165.65,165.57,20.0]
[1729535922103,0.604841,165.65,165.56,20.0]